bitfinex/quotes_ETHUSD_20251213
["timestamp","ask_amount","ask_price","bid_price","bid_amount"]
[1765646515831,0.30045751,3104.3,3104.2,4.34554191]
[1765646518556,0.58047529,3105.0,3104.2,5.102257]
[1765646518755,0.508,3104.7,3104.4,0.4639]
[1765646518960,0.30041365,3104.6,3104.4,0.4639]
[1765646519158,0.30041365,3104.5,3104.2,6.62988382]
[1765646519360,0.508,3104.7,3104.2,6.62988382]
[1765646519658,0.508,3104.7,3104.6,0.4639]
[1765646519864,0.80836014,3104.7,3104.6,0.4639]
[1765646521046,1.28206014,3104.7,3104.3,3.22130484]
[1765646521243,0.30036014,3104.6,3104.3,3.67510484]
[1765646521459,0.30036014,3104.5,3104.2,0.187]
[1765646521666,0.4691,3104.3,3103.9,3.22174654]
[1765646521832,0.4691,3104.3,3104.0,0.41835465]
[1765646522031,0.58047529,3104.6,3104.2,0.4639]
[1765646522232,0.30035586,3104.5,3104.2,0.4639]
[1765646522542,0.30035586,3104.4,3104.2,0.4639]
[1765646522851,1.04717529,3104.6,3104.2,0.4639]
[1765646523052,0.7670206,3104.5,3104.2,0.4639]
[1765646523247,0.3003206,3104.4,3104.2,0.4639]
[1765646523441,0.4667,3104.5,3104.2,0.4639]
[1765646525659,0.4667,3104.5,3104.0,3.67541057]
[1765646525864,0.4667,3104.5,3104.1,3.22154511]
[1765646526348,0.4667,3104.5,3104.1,3.67534511]
[1765646527256,1.08847529,3104.7,3104.1,3.67534511]
[1765646527458,0.30018266,3104.6,3104.1,3.67534511]
[1765646527652,0.30018266,3104.5,3104.1,3.67534511]
[1765646527960,0.4737,3104.2,3104.0,3.22162956]
[1765646528263,0.4737,3104.2,3103.9,3.22172111]
[1765646529536,0.4737,3104.2,3103.7,3.67573494]
[1765646529537,0.4737,3104.2,3104.0,3.22164206]
[1765646529947,0.4737,3104.2,3103.9,3.2217133]
[1765646531146,0.4737,3104.0,3103.9,3.2217133]
[1765646531865,0.508,3104.3,3103.8,3.22185707]
[1765646532067,0.508,3104.3,3103.9,0.4639]
[1765646532235,0.508,3104.3,3103.9,0.9177]
[1765646532441,0.9747,3104.3,3103.9,0.9177]
[1765646532636,0.508,3104.3,3104.2,0.4639]
[1765646532949,0.80825951,3104.3,3104.2,0.4639]
[1765646533966,0.80825951,3104.3,3104.1,3.22154569]
[1765646534163,0.508,3104.3,3104.1,3.22154569]
[1765646535566,0.508,3104.3,3103.9,3.67555237]
[1765646535764,0.508,3104.3,3103.8,0.68996175]
[1765646536063,0.0187,3103.9,3103.7,3.2219033]
[1765646536236,0.0187,3103.9,3103.7,3.86651011]
[1765646536656,0.4691,3103.8,3103.7,3.86651011]
[1765646537169,0.4667,3104.1,3103.8,3.22185707]
[1765646538563,0.4667,3104.1,3103.6,0.4558]
[1765646538866,0.4667,3104.1,3103.7,0.4538]
[1765646539366,0.4667,3104.1,3103.6,0.002]
[1765646539567,0.4667,3104.1,3103.6,0.4558]
[1765646540144,0.4737,3103.7,3103.6,0.002]
[1765646540647,0.9404,3103.7,3103.6,0.002]
[1765646541979,1.24111555,3103.7,3103.6,0.002]
[1765646545250,0.77441555,3103.7,3103.6,0.002]
[1765646545648,1.25591555,3103.7,3103.6,0.002]
[1765646547164,1.45044711,3103.7,3103.6,0.002]
[1765646547363,4.67240799,3103.7,3103.6,0.002]
[1765646547570,5.25288328,3103.7,3103.6,0.002]
[1765646548480,30.25756828,3103.7,3103.6,0.002]
[1765646548698,29.25756828,3103.7,3103.6,0.002]
[1765646549248,5.3890754,3103.7,3103.6,0.002]
[1765646549454,1.86289084,3103.7,3103.6,0.002]
[1765646550091,2.33839084,3103.7,3103.6,0.002]
[1765646550384,0.88119084,3103.7,3103.6,0.002]
[1765646550552,1.38919084,3103.7,3103.6,0.4863]
[1765646551457,1.38919084,3103.7,3103.6,0.002]
[1765646551671,1.87829084,3103.7,3103.6,0.002]
[1765646553255,1.38919084,3103.7,3103.6,0.4863]
[1765646553450,0.88119084,3103.7,3103.6,0.4863]
[1765646553655,1.38919084,3103.7,3103.6,0.4863]
[1765646553857,0.88119084,3103.7,3103.6,0.952]
[1765646554898,0.88119084,3103.7,3103.6,3.70836469]
[1765646555191,0.508,3103.9,3103.6,4.17406469]
[1765646555490,0.508,3103.9,3103.8,0.4843]
[1765646555697,0.8083276,3103.9,3103.8,0.4843]
[1765646556497,1.2974276,3103.9,3103.6,3.22406469]
[1765646556699,0.3003276,3103.8,3103.6,3.22406469]
[1765646556989,0.9971,3103.9,3103.6,0.002]
[1765646557160,0.30036243,3103.8,3103.6,0.002]
[1765646557357,0.508,3103.9,3103.6,0.002]
[1765646557560,0.30040269,3103.8,3103.6,0.4677]
[1765646557800,0.508,3103.9,3103.6,0.4677]
[1765646557965,0.30040269,3103.8,3103.6,0.4677]
[1765646558167,0.508,3103.9,3103.6,0.4677]
[1765646558494,0.3004027,3103.8,3103.6,0.4677]
[1765646558670,0.508,3103.9,3103.8,0.4843]
[1765646558991,0.80846703,3103.9,3103.8,0.4843]
[1765646559178,0.30046703,3103.9,3103.8,0.4843]
[1765646559387,0.80846703,3103.9,3103.8,0.4843]
[1765646559765,0.80846703,3103.9,3103.8,0.95]
[1765646559978,0.30046703,3103.9,3103.8,0.95]
[1765646560788,0.30046703,3103.9,3103.8,4.91146882]
[1765646560984,0.508,3104.2,3103.8,8.13332589]
[1765646561188,0.508,3104.2,3104.1,0.4843]
[1765646561384,0.80856224,3104.2,3104.1,0.4843]
[1765646561899,1.29766224,3104.2,3103.8,3.22185707]
[1765646562065,0.009,3104.0,3103.8,3.22185707]
[1765646562266,0.4755,3104.1,3103.7,3.22192835]
[1765646562483,0.4843,3103.9,3103.7,3.22192835]
[1765646563301,0.4755,3104.1,3103.8,0.4843]
[1765646563503,0.3006389,3104.0,3103.8,0.4843]
[1765646563701,0.4755,3104.1,3103.8,0.4843]
[1765646563876,0.30063743,3104.0,3103.8,0.4843]
[1765646564078,0.4755,3104.1,3103.8,0.4843]
[1765646564281,0.30063709,3104.0,3103.8,0.4843]
[1765646564481,0.4755,3104.1,3103.8,0.4843]
[1765646564699,0.4891,3103.9,3103.7,3.22192835]
[1765646564905,0.4891,3103.9,3103.6,0.002]
[1765646565268,0.4755,3104.1,3103.8,0.4843]
[1765646565492,0.30070489,3104.0,3103.8,0.4843]
[1765646565688,0.4755,3104.1,3103.8,0.4843]
[1765646565928,0.30070489,3104.0,3103.8,0.4843]
[1765646566104,0.4755,3104.1,3103.8,0.4843]
[1765646566406,0.30070491,3104.0,3103.8,0.4843]
[1765646566570,0.508,3104.2,3103.8,0.95]
[1765646566772,0.30071373,3104.1,3103.9,0.4843]
[1765646567098,0.30071373,3104.0,3103.9,0.95]
[1765646567308,0.30071373,3104.0,3103.9,0.4657]
[1765646567512,0.30071373,3104.0,3103.9,0.95]
[1765646567905,0.30071373,3104.0,3103.9,4.17175327]
[1765646569908,0.80871373,3104.0,3103.9,4.17175327]
[1765646571005,0.80871373,3104.0,3103.9,0.95]
[1765646571198,0.80871373,3104.0,3103.9,0.4843]
[1765646571902,1.29781373,3104.0,3103.7,3.68761942]
[1765646572101,0.9971,3104.0,3103.7,3.68761942]
[1765646572286,0.9971,3104.0,3103.8,3.22185558]
[1765646573807,0.508,3104.0,3103.8,3.22185558]
[1765646573975,0.508,3104.0,3103.9,0.4843]
[1765646574299,0.80870602,3104.0,3103.9,0.4843]
[1765646575995,0.80870602,3104.0,3103.9,3.70605327]
[1765646578504,0.80870602,3104.0,3103.9,0.4843]
[1765646579805,0.80870602,3104.0,3103.8,3.22182854]
[1765646580102,0.508,3104.0,3103.8,3.22182854]
[1765646580597,0.30082078,3103.9,3103.8,3.22182854]
[1765646580805,0.30082078,3103.9,3103.7,3.22196088]
[1765646581008,0.508,3104.0,3103.8,0.4704]
[1765646581307,0.30081932,3103.9,3103.8,0.4704]
[1765646583095,0.30081932,3103.9,3103.8,3.69225707]
[1765646584506,0.78101932,3103.9,3103.6,0.002]
[1765646584678,0.0098,3103.7,3103.6,0.002]
[1765646585304,0.1846,3103.9,3103.6,0.4724]
[1765646585500,0.30106095,3103.8,3103.6,0.4724]
[1765646585694,0.6639,3103.9,3103.6,0.4724]
[1765646585897,0.30106182,3103.8,3103.6,0.002]
[1765646586097,0.78126182,3103.7,3103.6,0.002]
[1765646586299,0.30106182,3103.7,3103.6,0.002]
[1765646586492,0.30106182,3103.7,3103.6,0.4724]
[1765646587609,1.26056182,3103.7,3103.6,0.002]
[1765646588911,1.72725352,3103.7,3103.6,0.002]
[1765646589607,1.26056182,3103.7,3103.6,0.002]
[1765646591417,5.06299799,3103.7,3103.6,0.002]
[1765646595115,24.78495399,3103.7,3103.6,0.002]
[1765646595415,19.27623799,3103.7,3103.6,0.002]
[1765646595711,17.59003799,3103.7,3103.6,0.002]
[1765646596014,21.31100687,3103.7,3103.6,0.002]
[1765646596405,19.64863587,3103.7,3103.6,0.002]
[1765646597002,11.12374787,3103.7,3103.6,0.002]
[1765646597312,11.63174787,3103.7,3103.6,0.002]
[1765646597892,7.67017272,3103.7,3103.6,0.002]
[1765646598108,24.47149572,3103.7,3103.6,0.002]
[1765646598309,20.98601572,3103.7,3103.6,0.002]
[1765646598508,17.20610172,3103.7,3103.6,0.002]
[1765646598917,19.26117872,3103.7,3103.6,0.002]
[1765646599094,17.52864772,3103.7,3103.6,0.002]
[1765646599895,20.93191272,3103.7,3103.6,0.002]
[1765646600104,17.58830172,3103.7,3103.6,0.002]
[1765646600420,17.34410172,3103.7,3103.6,0.002]
[1765646601092,17.69890872,3103.7,3103.6,0.002]
[1765646601703,17.17610172,3103.7,3103.6,0.002]
[1765646602192,17.17410172,3103.7,3103.6,0.002]
[1765646603125,18.96636672,3103.7,3103.6,0.002]
[1765646603453,17.08310172,3103.7,3103.6,0.002]
[1765646604124,18.61867072,3103.7,3103.6,0.002]
[1765646604612,16.81910172,3103.7,3103.6,0.002]
[1765646605710,10.92399672,3103.7,3103.6,0.002]
[1765646606323,9.90558472,3103.7,3103.6,0.4666]
[1765646606630,7.05973584,3103.7,3103.6,0.4666]
[1765646606829,7.05973584,3103.7,3103.6,0.002]
[1765646607130,7.54513584,3103.7,3103.6,0.002]
[1765646608314,10.45034884,3103.7,3103.6,0.002]
[1765646608625,9.36892784,3103.7,3103.6,0.002]
[1765646608828,10.64646557,3103.7,3103.6,0.002]
[1765646609339,16.38021857,3103.7,3103.6,0.002]
[1765646609515,15.03465057,3103.7,3103.6,0.002]
[1765646609900,14.71210457,3103.7,3103.6,0.002]
[1765646610434,12.07871457,3103.7,3103.6,0.002]
[1765646611434,25.28165857,3103.7,3103.6,0.002]
[1765646611632,23.80968657,3103.7,3103.6,0.002]
[1765646611935,21.47863157,3103.7,3103.6,0.002]
[1765646612514,22.65946057,3103.7,3103.6,0.002]
[1765646613033,14.48586557,3103.7,3103.6,0.002]
[1765646613603,15.80260057,3103.7,3103.6,0.002]
[1765646614529,23.41518957,3103.7,3103.6,0.002]
[1765646614746,17.69852757,3103.7,3103.6,0.002]
[1765646615555,22.55648957,3103.7,3103.6,0.002]
[1765646615926,22.07254557,3103.7,3103.6,0.002]
[1765646616354,19.60021357,3103.7,3103.6,0.002]
[1765646617528,16.19222757,3103.7,3103.6,0.002]
[1765646618757,18.97542057,3103.7,3103.6,0.002]
[1765646619361,18.97572869,3103.7,3103.6,0.002]
[1765646619672,28.86874169,3103.7,3103.6,0.002]
[1765646619864,27.90110369,3103.7,3103.6,0.002]
[1765646620161,26.66851969,3103.7,3103.6,0.002]
[1765646620358,17.32835669,3103.7,3103.6,0.002]
[1765646620737,6.37426969,3103.7,3103.6,0.002]
[1765646620940,9.13001269,3103.7,3103.6,0.002]
[1765646621955,6.37426969,3103.7,3103.6,0.002]
[1765646622167,9.13001269,3103.7,3103.6,0.002]
[1765646622865,8.16946596,3103.7,3103.6,0.4666]
[1765646623076,8.16946596,3103.7,3103.6,0.002]
[1765646623077,10.77612896,3103.7,3103.6,0.002]
[1765646624178,15.96275196,3103.7,3103.6,0.002]
[1765646624476,5.55343196,3103.7,3103.6,0.002]
[1765646624981,17.78918596,3103.7,3103.6,0.002]
[1765646625299,15.8521345,3103.7,3103.6,0.002]
[1765646626077,17.1072405,3103.7,3103.6,0.002]
[1765646626975,16.4432405,3103.7,3103.6,0.002]
[1765646627557,12.6140825,3103.7,3103.6,0.002]
[1765646627756,11.4432405,3103.7,3103.6,0.002]
[1765646628054,14.3175935,3103.7,3103.6,0.002]
[1765646629077,23.9422115,3103.7,3103.6,0.002]
[1765646629272,22.9090705,3103.7,3103.6,0.002]
[1765646629448,22.5865245,3103.7,3103.6,0.002]
[1765646629747,12.1072405,3103.7,3103.6,0.002]
[1765646629947,11.0590405,3103.7,3103.6,0.002]
[1765646630147,12.9861925,3103.7,3103.6,0.002]
[1765646630371,11.0590405,3103.7,3103.6,0.002]
[1765646631076,13.5270795,3103.7,3103.6,0.002]
[1765646631778,11.7230405,3103.7,3103.6,0.002]
[1765646632278,16.6132245,3103.7,3103.6,0.002]
[1765646632459,11.7230405,3103.7,3103.6,0.002]
[1765646632776,11.0590405,3103.7,3103.6,0.002]
[1765646633279,7.6732955,3103.7,3103.6,0.002]
[1765646633578,18.0132245,3103.7,3103.6,0.002]
[1765646633780,13.0132245,3103.7,3103.6,0.002]
[1765646634290,7.6732955,3103.7,3103.6,0.002]
[1765646634587,12.26365396,3103.7,3103.6,0.002]
[1765646635354,23.30826996,3103.7,3103.6,0.002]
[1765646635867,21.62551296,3103.7,3103.6,0.002]
[1765646636383,21.63246896,3103.7,3103.6,0.002]
[1765646638481,22.63246896,3103.7,3103.6,0.002]
[1765646638983,21.63246896,3103.7,3103.6,0.002]
[1765646639182,17.12107696,3103.7,3103.6,0.002]
[1765646639580,17.38907696,3103.7,3103.6,0.002]
[1765646640387,13.42488096,3103.7,3103.6,0.4561]
[1765646640589,13.56791696,3103.7,3103.6,0.4561]
[1765646640974,11.89797696,3103.7,3103.6,0.4561]
[1765646641681,12.26275496,3103.7,3103.6,0.4561]
[1765646641989,8.57616696,3103.7,3103.6,0.4561]
[1765646642590,8.02116696,3103.7,3103.6,0.4561]
[1765646643687,10.16337196,3103.7,3103.6,0.4561]
[1765646643889,8.74316696,3103.7,3103.6,0.4561]
[1765646644193,8.51616696,3103.7,3103.6,0.4561]
[1765646645664,8.35616696,3103.7,3103.6,0.4561]
[1765646646893,9.98293796,3103.7,3103.6,0.4561]
[1765646647294,7.99516696,3103.7,3103.6,0.4561]
[1765646647863,9.24020096,3103.7,3103.6,0.4561]
[1765646648264,7.99393296,3103.7,3103.6,0.4561]
[1765646648793,9.34928196,3103.7,3103.6,0.4561]
[1765646649087,4.61133196,3103.7,3103.6,0.9349]
[1765646649288,6.34904101,3103.7,3103.6,0.002]
[1765646650697,31.16059901,3103.7,3103.6,0.002]
[1765646651072,29.17669801,3103.7,3103.6,0.002]
[1765646651267,28.07419801,3103.7,3103.6,0.002]
[1765646651474,24.21403501,3103.7,3103.6,0.002]
[1765646651779,6.34904101,3103.7,3103.6,0.002]
[1765646651998,26.65199401,3103.7,3103.6,0.002]
[1765646652397,26.35109822,3103.7,3103.6,0.002]
[1765646652572,26.65235137,3103.7,3103.6,0.002]
[1765646652897,30.40796737,3103.7,3103.6,0.002]
[1765646653098,28.98293337,3103.7,3103.6,0.002]
[1765646653498,28.02342437,3103.7,3103.6,0.002]
[1765646654002,30.86729437,3103.7,3103.6,0.002]
[1765646654702,30.37952737,3103.7,3103.6,0.002]
[1765646654908,6.75490237,3103.7,3103.6,0.002]
[1765646655210,35.12081937,3103.7,3103.6,0.002]
[1765646657296,30.24930937,3103.7,3103.6,0.002]
[1765646657698,29.92677537,3103.7,3103.6,0.002]
[1765646657905,31.46386337,3103.7,3103.6,0.002]
[1765646658811,31.46386337,3103.7,3103.1,0.0758]
[1765646658812,28.771421,3103.0,3102.6,0.002]
[1765646659000,30.62974944,3103.0,3102.6,0.002]
[1765646659176,31.09804944,3103.0,3102.6,0.002]
[1765646659381,28.771421,3102.8,3102.6,0.002]
[1765646659705,0.405504,3102.6,3102.4,0.002]
[1765646659915,0.405504,3102.6,3102.3,0.002]
[1765646659916,32.57520727,3102.4,3102.3,0.002]
[1765646660129,34.11756947,3102.4,3102.3,0.002]
[1765646660331,34.58586947,3102.4,3102.3,0.002]
[1765646661717,35.09486947,3102.4,3102.3,0.002]
[1765646663913,34.18036547,3102.4,3102.3,0.002]
[1765646664115,34.68936547,3102.4,3102.3,0.002]
[1765646664500,35.09486947,3102.4,3102.3,0.002]
[1765646664913,34.58586947,3102.4,3102.3,0.002]
[1765646665120,35.09486947,3102.4,3102.3,0.002]
[1765646665726,7.04878915,3102.4,3102.3,0.4814]
[1765646665904,4.74253615,3102.4,3102.3,0.9375]
[1765646666105,4.19049029,3102.4,3102.3,0.9375]
[1765646666417,4.69949029,3102.4,3102.3,0.9375]
[1765646666724,4.119015,3102.4,3102.3,0.9375]
[1765646666903,4.69949029,3102.4,3102.3,0.9375]
[1765646667106,6.44475236,3103.3,3102.3,0.9375]
[1765646667326,0.405504,3102.9,3102.5,0.4794]
[1765646667632,7.99147524,3102.9,3102.8,0.4794]
[1765646667932,8.09497124,3102.9,3102.8,0.4794]
[1765646668132,0.58047529,3102.8,3102.3,0.002]
[1765646668537,0.58047529,3102.6,3102.3,0.4581]
[1765646668708,0.509,3102.5,3102.3,0.4581]
[1765646669223,0.509,3102.5,3102.4,0.4794]
[1765646670308,19.43513729,3102.4,3102.3,0.002]
[1765646670838,19.43513729,3102.4,3102.3,0.4814]
[1765646671335,19.89323729,3102.4,3102.3,0.002]
[1765646671728,17.91114229,3102.4,3102.3,0.002]
[1765646672037,16.39124229,3102.4,3102.3,0.002]
[1765646672217,15.93314229,3102.4,3102.3,0.002]
[1765646672908,19.15645327,3102.4,3102.3,0.002]
[1765646673107,21.90341931,3102.4,3102.3,0.002]
[1765646677737,21.44531931,3102.4,3102.3,0.002]
[1765646677946,19.15645327,3102.4,3102.3,0.4814]
[1765646681139,19.45594807,3102.4,3102.3,0.4814]
[1765646686240,19.91434807,3102.4,3102.3,0.002]
[1765646687018,19.45594807,3102.4,3102.3,0.002]
[1765646688229,19.91434807,3102.4,3102.3,0.002]
[1765646691826,22.32823359,3102.4,3102.3,0.002]
[1765646694859,22.32966125,3102.4,3102.3,0.002]
[1765646696347,21.26706025,3102.4,3102.3,0.4842]
[1765646697154,18.85317473,3102.4,3102.3,0.4842]
[1765646697333,10.14693273,3102.4,3102.3,0.9556]
[1765646698234,6.01783875,3102.4,3102.3,0.9556]
[1765646698439,9.24114973,3102.4,3102.3,0.002]
[1765646698843,9.24114973,3102.4,3102.3,0.4842]
[1765646699262,9.24114973,3102.4,3102.3,0.9556]
[1765646701137,5.66983875,3102.4,3102.3,0.9556]
[1765646701338,4.28139875,3102.4,3102.3,0.9556]
[1765646701667,7.50470973,3102.4,3102.3,0.9556]
[1765646701857,4.28139875,3102.4,3102.3,0.9556]
[1765646702569,0.80992246,3102.4,3102.3,0.9556]
[1765646705438,1.39039775,3102.4,3102.3,0.4842]
[1765646705644,0.80992246,3102.4,3102.3,0.9556]
[1765646706453,4.61370873,3102.4,3102.3,0.9556]
[1765646706760,4.61384998,3102.4,3102.3,0.9556]
[1765646707075,4.61384998,3102.4,3102.3,0.4842]
[1765646708482,4.61384998,3102.4,3102.3,0.9556]
[1765646709579,1.390539,3102.4,3102.3,0.9556]
[1765646710838,0.881539,3102.4,3102.3,0.9556]
[1765646711048,1.390539,3102.4,3102.3,0.9556]
[1765646711559,0.881539,3102.4,3102.3,0.9556]
[1765646711742,1.390539,3102.4,3102.3,0.9556]
[1765646712464,1.390539,3102.4,3102.3,0.4842]
[1765646712670,1.390539,3102.4,3102.3,0.9556]
[1765646713949,1.39050296,3102.4,3102.3,0.9556]
[1765646714959,25.00678994,3102.4,3102.3,0.002]
[1765646715559,24.55448994,3102.4,3102.3,0.002]
[1765646716265,25.00678994,3102.4,3102.3,0.002]
[1765646718172,25.00678994,3102.4,3102.3,0.9556]
[1765646718173,4.48160396,3102.4,3102.3,0.9556]
[1765646718376,4.99060396,3102.4,3102.3,0.9556]
[1765646718982,8.21391494,3102.4,3102.3,0.9556]
[1765646719349,4.61381394,3102.4,3102.3,0.9556]
[1765646719895,1.39050296,3102.4,3102.3,0.9556]
[1765646721287,4.61381394,3102.4,3102.3,0.9556]
[1765646721464,4.61381394,3102.4,3102.3,0.4842]
[1765646721665,1.39050296,3102.4,3102.3,0.4842]
[1765646721982,1.39050296,3102.4,3102.3,0.9345]
[1765646724454,0.88150296,3102.4,3102.3,0.9345]
[1765646724666,1.39050296,3102.4,3102.3,0.9345]
[1765646728390,1.39050296,3102.4,3102.3,0.4842]
[1765646728990,1.39050296,3102.4,3102.3,0.9474]
[1765646734593,0.88150296,3102.4,3102.3,0.9474]
[1765646740812,0.88150296,3102.4,3102.3,0.4842]
[1765646741108,0.88150296,3102.4,3102.3,0.9474]
[1765646741307,0.88150296,3102.4,3102.3,0.4842]
[1765646741707,0.88150296,3102.4,3102.3,0.9474]
[1765646742308,1.34370296,3102.4,3102.3,0.002]
[1765646742480,4.56701394,3102.4,3102.3,0.002]
[1765646747605,4.56701394,3102.4,3102.3,0.4603]
[1765646747794,1.34370296,3102.4,3102.3,0.4603]
[1765646748108,0.88150296,3102.4,3102.3,0.4603]
[1765646748709,4.10481394,3102.4,3102.3,0.4603]
[1765646749510,4.56701394,3102.4,3102.3,0.002]
[1765646749705,4.26598627,3102.4,3102.3,0.002]
[1765646750007,4.56703862,3102.4,3102.3,0.002]
[1765646751010,4.10483862,3102.4,3102.3,0.002]
[1765646751195,0.88152764,3102.4,3102.3,0.002]
[1765646751400,0.88152764,3102.4,3102.3,0.4603]
[1765646752204,4.10483862,3102.4,3102.3,0.4603]
[1765646752406,0.88152764,3102.4,3102.3,0.4603]
[1765646753206,4.10483862,3102.4,3102.3,0.4603]
[1765646755586,0.88152764,3102.4,3102.3,0.4603]
[1765646758189,4.10483862,3102.4,3102.3,0.4603]
[1765646759315,0.88152764,3102.4,3102.3,0.4603]
[1765646759938,4.10483862,3102.4,3102.3,0.4603]
[1765646760928,0.88152764,3102.4,3102.3,0.4603]
[1765646761511,0.88152764,3102.4,3102.3,0.946]
[1765646761909,0.88152764,3102.4,3102.3,0.4603]
[1765646762217,4.10483862,3102.4,3102.3,0.4603]
[1765646763219,0.88152764,3102.4,3102.3,0.4603]
[1765646764791,0.88152764,3102.4,3102.3,0.946]
[1765646768699,4.55883862,3102.4,3102.3,0.002]
[1765646769403,5.01013862,3102.4,3102.3,0.002]
[1765646770621,5.89727498,3102.4,3102.3,0.002]
[1765646771206,5.01013862,3102.4,3102.3,0.002]
[1765646771405,4.55883862,3102.4,3102.3,0.002]
[1765646775539,1.33552764,3102.4,3102.3,0.002]
[1765646779338,4.55883862,3102.4,3102.3,0.002]
[1765646780338,0.88152764,3102.4,3102.3,0.4748]
[1765646780915,0.881806,3102.4,3102.3,0.4748]
[1765646782121,4.10511698,3102.4,3102.3,0.4748]
[1765646782330,4.55911698,3102.4,3102.3,0.002]
[1765646785022,5.21641698,3102.4,3102.3,0.002]
[1765646787052,1.993106,3102.4,3102.3,0.002]
[1765646787345,1.539106,3102.4,3102.3,0.4825]
[1765646788053,4.76241698,3102.4,3102.3,0.4825]
[1765646791765,1.539106,3102.4,3102.3,0.4825]
[1765646792444,4.76241698,3102.4,3102.3,0.4825]
[1765646793530,5.21610708,3102.4,3102.3,0.002]
[1765646796259,5.66900708,3102.4,3102.3,0.002]
[1765646797957,5.21610708,3102.4,3102.3,0.002]
[1765646804862,1.4963961,3102.4,3102.3,0.942]
[1765646805067,0.8390961,3102.4,3102.3,0.942]
[1765646806955,4.55880708,3102.4,3102.3,0.002]
[1765646807470,4.68791701,3102.4,3102.3,0.002]
[1765646808973,5.14081701,3102.4,3102.3,0.002]
[1765646811676,4.68791701,3102.4,3102.3,0.002]
[1765646815483,1.46460603,3102.4,3102.3,0.002]
[1765646815982,4.68791701,3102.4,3102.3,0.002]
[1765646818651,0.96820603,3102.4,3102.3,0.4536]
[1765646818857,0.96820603,3102.4,3102.3,0.9066]
[1765646819264,0.96820603,3102.4,3102.3,0.4536]
[1765646819468,0.96820603,3102.4,3102.3,0.9066]
[1765646819859,1.47720603,3102.4,3102.3,0.9066]
[1765646821983,5.15721701,3102.4,3102.3,0.002]
[1765646822189,5.65091701,3102.4,3102.3,0.002]
[1765646825092,5.15721701,3102.4,3102.3,0.002]
[1765646826685,1.93390603,3102.4,3102.3,0.002]
[1765646826871,5.15721701,3102.4,3102.3,0.002]
[1765646830894,1.47720603,3102.4,3102.3,0.4536]
[1765646831092,4.70051701,3102.4,3102.3,0.4536]
[1765646832101,5.15751701,3102.4,3102.3,0.002]
[1765646834305,5.56302101,3102.4,3102.3,0.002]
[1765646834501,6.93494196,3102.4,3102.3,0.002]
[1765646838807,6.93494196,3102.4,3102.1,0.002]
[1765646838808,29.35189629,3102.2,3102.1,0.002]
[1765646839011,30.105027,3102.2,3102.1,0.002]
[1765646839179,28.229342,3102.2,3102.1,0.002]
[1765646839380,19.76923607,3102.2,3102.1,0.002]
[1765646839580,19.89837643,3102.2,3102.1,0.002]
[1765646839815,19.89837643,3102.2,3102.1,0.4536]
[1765646839816,11.55068043,3102.2,3102.1,0.4536]
[1765646839982,1.97174636,3102.2,3102.1,0.4536]
[1765646840183,2.46574636,3102.2,3102.1,0.002]
[1765646840799,5.68926515,3102.2,3102.1,0.002]
[1765646840996,5.19526515,3102.2,3102.1,0.002]
[1765646842110,4.74346515,3102.2,3102.1,0.4756]
[1765646842897,4.44213444,3102.2,3102.1,0.4756]
[1765646843211,4.74326207,3102.2,3102.1,0.4756]
[1765646843611,0.43026799,3102.2,3102.1,1.1218]
[1765646843788,0.93926799,3102.2,3102.1,1.1218]
[1765646843987,0.81012763,3102.2,3102.1,1.1218]
[1765646845108,0.81012763,3102.2,3102.1,0.002]
[1765646845109,5.56452171,3102.2,3102.1,0.002]
[1765646845485,6.53299937,3102.2,3102.1,0.002]
[1765646845686,5.56452171,3102.2,3102.1,0.002]
[1765646846592,34.33594271,3102.2,3102.1,0.002]
[1765646854393,34.46509141,3102.2,3102.1,0.002]
[1765646861311,29.35189629,3102.1,3102.0,0.002]
[1765646861513,30.14592392,3102.1,3102.0,0.002]
[1765646861936,33.36954662,3102.1,3102.0,0.002]
[1765646862126,33.85154662,3102.1,3102.0,0.002]
[1765646866137,5.48562962,3102.1,3102.0,0.002]
[1765646866416,33.85154662,3102.1,3102.0,0.002]
[1765646866611,34.28236173,3102.1,3102.0,0.002]
[1765646866917,34.28236173,3102.1,3101.7,0.002]
[1765646866918,29.35189629,3101.8,3101.7,0.002]
[1765646867223,30.61982392,3101.8,3101.7,0.002]
[1765646867424,31.10782392,3101.8,3101.7,0.002]
[1765646868244,34.8137584,3101.8,3101.7,0.002]
[1765646870145,6.4478414,3101.8,3101.7,0.002]
[1765646870444,34.81326128,3101.8,3101.7,0.002]
[1765646871243,34.81326131,3101.8,3101.7,0.002]
[1765646872447,6.44734431,3101.8,3101.7,0.002]
[1765646872648,34.81326131,3101.8,3101.7,0.002]
[1765646873052,34.81327915,3101.8,3101.7,0.002]
[1765646874918,34.32527915,3101.8,3101.7,0.002]
[1765646875246,34.82237915,3101.8,3101.7,0.002]
[1765646876262,0.405504,3101.5,3101.0,0.002]
[1765646876428,3.80503352,3101.2,3101.1,0.5631]
[1765646876759,4.1056819,3101.2,3101.1,0.5631]
[1765646876937,4.1056819,3101.2,3101.1,1.0154]
[1765646877133,4.1056819,3101.2,3101.0,0.002]
[1765646877327,0.88112367,3101.1,3101.0,0.002]
[1765646877536,2.24012767,3101.1,3101.0,0.002]
[1765646877742,1.28662767,3101.1,3101.0,0.4543]
[1765646877953,1.4158114,3101.1,3101.0,0.4543]
[1765646879067,4.64047361,3101.1,3101.0,0.4543]
[1765646879456,4.64047361,3101.1,3101.0,0.9258]
[1765646887049,30.28633561,3101.1,3101.0,0.4543]
[1765646887268,33.46119061,3101.1,3101.0,0.002]
[1765646887485,33.95989061,3101.1,3101.0,0.002]
[1765646888989,30.55224761,3101.1,3101.0,0.002]